Cogmind - Beta 14 @@@ ROGUE MODE // 2024.12.12 @ 01:09:35 Player: mlys Result: Destroyed by G-34 Mercenary with Small Laser Performance ------------- Evolutions (0) 0 Regions Visited (1) 200 Robots Destroyed (9) 45 Value Destroyed (249) 249 Prototype IDs (0) 0 Alien Tech Used (0) 0 Bonus (0) 0 TOTAL SCORE: 494 Bonus ------- None Cogmind --------- Core Integrity 0/250 Matter 280/300 Energy 18/100 System Corruption 2% Temperature Warning (382) Movement Walking (190) Ox1 Location -10/Materials Parts ------- > --- POWER (1) -------- (None) > --- PROPULSION (2) --- Aluminum Leg > --- UTILITY (2) ------ Medium Storage Unit Visual Processing Unit > --- WEAPON (2) ------- Small Laser Light Assault Rifle > --- INVENTORY (10) --- Light Ion Engine Peak State ------------ > --- POWER ------------ Light Ion Engine > --- PROPULSION ------- Aluminum Leg Aluminum Leg > --- UTILITY ---------- Medium Storage Unit Visual Processing Unit > --- WEAPON ----------- Beam Cannon Beam Cannon > --- INVENTORY -------- Light Ion Engine Small Laser Light Assault Rifle Light Assault Rifle [Rating: 8] Favorites ----------- Power Light Ion Engine Engine Light Ion Engine Propulsion Aluminum Leg Leg Aluminum Leg Utility Medium Storage Unit Storage Medium Storage Unit Processor Visual Processing Unit Weapon Beam Cannon Energy Gun Small Laser Energy Cannon Beam Cannon Ballistic Gun Light Assault Rifle Build | -11 -10 ------- Run | Yrd Mat Slots Evolved . | . . Power . | . . Propulsion . | . . Utility . | . . Weapon . | . . Parts Attached 12 | 5 7 Power 2 | 1 1 Engine 2 | 1 1 Core . | . . Reactor . | . . Propulsion 2 | 2 . Treads . | . . Leg 2 | 2 . Wheel . | . . Hover . | . . Flight . | . . Utility 2 | . 2 Device . | . . Storage 1 | . 1 Processor 1 | . 1 Hackware . | . . Protection . | . . Artifact . | . . Weapon 6 | 2 4 Energy Gun 1 | . 1 Energy Cannon 2 | . 2 Ballistic Gun 3 | 2 1 Ballistic Cannon . | . . Launcher . | . . Special Weapon . | . . Impact Weapon . | . . Slashing Weapon . | . . Piercing Weapon . | . . Special Melee Weapon . | . . Unidentified Prototypes . | . . Parts Lost 4 | . 4 Power 1 | . 1 Propulsion 1 | . 1 Utility . | . . Weapon 2 | . 2 Highest Loss Streak 4 | . 4 To Critical Strikes . | . . Average Slot Usage (%) 81 | . 81 Engine 11 | . 11 Leg 27 | . 27 Storage 8 | . 8 Processor 6 | . 6 Energy Cannon 23 | . 23 Ballistic Gun 3 | . 3 Peak Build Rating 8 | 5 8 Average Rating 5 | 3 6 On Entrance 2 | . 5 Naked Turns . | . . Heaviest Build 19 | 5 19 Greatest Support 20 | 20 20 Greatest Overweight (x) 1 | . 1 Average Overweight (x) . | . . Largest Inventory Capacity 10 | 5 10 Average Capacity 6 | 5 7 Most Carried 4 | 1 4 Average Carried 2 | . 3 Final Capacity 10 | 5 10 Final Carried 1 | 1 1 Class Distribution -------------------- 100% | Mutant Dominant Class ---------------- Mutant | -10/Materials Resources | -11 -10 ----------- Run | Yrd Mat Matter Collected 344 | 172 172 Remotely . | . . Salvage Created 273 | 36 237 Parts 14 | 3 11 Haulers Intercepted . | . . Recyclers Shooed . | . . Parts Field Recycled . | . . Retrieved Matter . | . . Parts Self-Destructed . | . . Prevented . | . . Kills | -11 -10 ------- Run | Yrd Mat Combat Hostiles Destroyed 8 | 1 7 Guns 1 | 1 . Cannons 7 | . 7 Classes Destroyed 3 | 1 2 Watcher 1 | . 1 Swarmer 3 | . 3 Grunt 5 | 1 4 Best Kill Streak 3 | 1 3 Combat Bots Only 3 | 1 3 Max Kills in Single Turn 1 | 1 1 Gunslinging . | . . Exploded . | . . Melee . | . . Uniques/NPCs Destroyed . | . . Combat | -11 -10 -------- Run | Yrd Mat Hostile Shots Fired 70 | 3 67 Missed 12 | . 12 Damage Taken 739 | 34 705 Core 256 | 10 246 Absorbed by Shields . | . . Core Remaining (%) 96 | 96 . Volleys Fired 18 | 2 16 Largest 2 | 2 2 Hottest 120 | 40 120 Shots Fired 34 | 4 30 Gun 4 | 4 . Cannon 30 | . 30 Launcher . | . . Special . | . . Kinetic 4 | 4 . Thermal 30 | . 30 Explosive . | . . Electromagnetic . | . . Robot Hit Streak 6 | 3 6 Robot Miss Streak 3 | . 3 Penetration Max . | . . Secondary Targets . | . . Shots Hit Robots 18 | 3 15 Core Hits 12 | 3 9 Critical Kills . | . . Critical Parts Destroyed . | . . Critical Strikes . | . . Melee Attacks . | . . Impact . | . . Slashing . | . . Piercing . | . . Sneak Attacks . | . . Combat Hostiles . | . . Follow-up Attacks . | . . Damage Inflicted 307 | 30 277 Guns 28 | 28 . Cannons 277 | . 277 Explosions . | . . Melee . | . . Ramming 2 | 2 . Kinetic 28 | 28 . Thermal 277 | . 277 Explosive . | . . Electromagnetic . | . . Impact . | . . Slashing . | . . Piercing . | . . Highest Corruption 2 | . 2 Average Corruption 2 | . 2 Corruption Purged . | . . Corruption Blocked . | . . Effects 1 | . 1 Matter Fused 1 | . 1 Overload Shots . | . . Overflow Damage . | . . Projectiles . | . . Explosions . | . . Melee . | . . Knockbacks . | . . Impact . | . . Kinetic . | . . Secondary . | . . Self-Inflicted Damage . | . . Shots . | . . Rammed . | . . Targets Rammed 2 | 2 . Kicked 2 | 2 . Crushed . | . . Highest Temperature 554 | 12 554 Average Temperature 220 | 9 231 Received Heat Transfer 360 | 18 342 Effects 11 | . 11 Energy Bleed 2 | . 2 Interference 2 | . 2 Matter Decay 1 | . 1 Short Circuit 2 | . 2 Damage (minor) 1 | . 1 Damage (major) 1 | . 1 Damage (core) 2 | . 2 Siege Activations . | . . Robots Corrupted . | . . Combat Hostiles . | . . Parts Fried . | . . Impact Corruptions . | . . Robots Melted . | . . Combat Hostiles . | . . Parts Melted 1 | . 1 Heat Transferred 592 | . 592 Parts Sabotaged . | . . Parts Stolen . | . . Parts Stripped . | . . Power Chain Reactions . | . . Alert | -11 -10 ------- Run | Yrd Mat Peak Influence 151 | 20 151 Initial 13 | . 13 Average 52 | 5 73 Maximum Alert Level . | . . Low Security (%) 100 | 100 100 Level 1 . | . . Level 2 . | . . Level 3 . | . . Level 4 . | . . Level 5 . | . . High Security . | . . Max Security . | . . Squads Dispatched 1 | . 1 Investigation 1 | . 1 Extermination . | . . Reinforcement . | . . Assault . | . . Garrison . | . . Intercept . | . . Searches Triggered . | . . Construction Impeded . | . . Haulers Reinforced . | . . Active Scanning Responses . | . . Cargo Convoy Interrupts . | . . Stealth | -11 -10 --------- Run | Yrd Mat Distress Signals 1 | . 1 Communications Jammed . | . . Distress Signals . | . . Times Spotted 11 | 1 10 Peak Tracking Total 5 | 1 5 Tactical Retreats . | . . Traps | -11 -10 ------- Run | Yrd Mat Traps Triggered 1 | . 1 Indirectly . | . . Trap Hack Attempts . | . . Triggered . | . . Disarmed . | . . Reprogrammed . | . . Reused . | . . Traps Extracted . | . . Installed . | . . Triggered . | . . Machines | -11 -10 ---------- Run | Yrd Mat Machines Disabled 2 | . 2 Max in Single Turn 1 | . 1 Machines Repaired . | . . Machines Dismantled . | . . Machines Sabotaged . | . . Overloaded Fab Kills . | . . Hacking | -11 -10 --------- Run | Yrd Mat Machines Accessed 4 | . 4 Terminals 4 | . 4 Fabricators . | . . Repair Stations . | . . Recycling Units . | . . Scanalyzers . | . . Garrison Access . | . . Total Hacks 13 | . 13 Successful 7 | . 7 Failed 6 | . 6 Catastrophic . | . . Database Lockouts . | . . Manual . | . . Terminals 13 | . 13 Fabricators . | . . Repair Stations . | . . Recycling Units . | . . Scanalyzers . | . . Garrison Access . | . . Terminal Hacks 7 | . 7 Record 3 | . 3 Alert Level 1 | . 1 Unreport Threat 1 | . 1 Maintenance Status 1 | . 1 Patrol Status 1 | . 1 Fabricator Hacks . | . . Repair Station Hacks . | . . Recycling Unit Hacks . | . . Scanalyzer . | . . Garrison Access Hacks . | . . Unauthorized Hacks . | . . Terminals . | . . Fabricators . | . . Repair Stations . | . . Recycling Units . | . . Scanalyzers . | . . Garrison Access . | . . Data Cores Recovered . | . . Used . | . . Hacking Detections 2 | . 2 Full Trace Events 2 | . 2 Feedback Events . | . . Feedback Blocked . | . . Robot Schematics Acquired . | . . Robots Built . | . . Authchips . | . . Time . | . . Total Robot Build Rating . | . . Part Schematics Acquired . | . . Parts Built . | . . Authchips . | . . Time . | . . Total Part Build Rating . | . . Parts Repaired . | . . Time . | . . Parts Recycled . | . . Recycled Matter . | . . Retrieved Matter . | . . Retrieved Components . | . . Parts Scanalyzed . | . . Part Schematics Acquired . | . . Parts Damaged . | . . Bothacking | -11 -10 ------------ Run | Yrd Mat Used RIF Installer . | . . Robots Hacked . | . . Non-combat . | . . Combat . | . . Robot Hacks Applied . | . . Relay Couplers Released . | . . Fabnet Peak Effective % . | . . Robots Rewired . | . . Allies Hacked . | . . Hacks Repelled . | . . Allies | -11 -10 -------- Run | Yrd Mat Total Allies . | . . Largest Group . | . . Highest-Rated Group . | . . Highest-Rated Ally . | . . Total Orders . | . . Ally Attacks . | . . Total Damage . | . . Kills . | . . Allies Corrupted . | . . Allies Melted . | . . Intel | -11 -10 ------- Run | Yrd Mat Robot Analysis Total . | . . Derelict Logs Recovered . | . . Drone Launches . | . . Drone Recoveries . | . . Exploration | -11 -10 ------------- Run | Yrd Mat Turns Passed 399 | 123 276 Spaces Moved 283 | 103 180 Core 25 | 25 . Treads . | . . Legs 258 | 78 180 Wheels . | . . Hover . | . . Flight . | . . Fastest Speed 50 | 50 120 Average Speed 115 | 103 121 Slowest Speed 190 | 120 190 Overloaded Moves . | . . Propulsion Burnouts . | . . Robots Hopped . | . . Cave-ins Triggered . | . . Exploration Rate (%) 19 | 7 32 Regions Visited 1 Branch Regions . Pre-discovered Areas . | . . Known Exits Taken . | . . Unknown Exits Taken 1 | 1 . Scrap Searched . | . . Spaces Dug . | . . Terrain Destroyed . | . . Melee . | . . Projectile . | . . AOE . | . . Terrain Rammed . | . . Walls Destroyed . | . . Machines Disabled . | . . Actions | -11 -10 --------- Run | Yrd Mat Total 320 | 114 206 Wait . | . . Move 282 | 102 180 Hop . | . . Pick Up 4 | 2 2 Fast Attach 7 | 5 2 Attach 2 | . 2 Detach . | . . Swap 3 | . 3 Drop 2 | 1 1 Fire 18 | 2 16 Melee . | . . Ram . | . . Kick 2 | 2 . Crush . | . . Escape Stasis . | . . Rewire . | . . Trap . | . . Miscellaneous . | . . Route ------- -11/Scrapyard -10/Materials (discovered 1 exit: [*Mat]) History --------- Turn | Location | Event 2 | -11/Scrapyard | Met Revision 17 80 | -11/Scrapyard | Discovered new exit (range 8) 124 | -11/Scrapyard | Entered Materials 300 | -10/Materials | Build established: Mutant 325 | -10/Materials | Discovered new exit (range 16) 391 | -10/Materials | Core integrity fell below 50% 393 | -10/Materials | Core integrity fell below 20% 400 | -10/Materials | Destroyed by G-34 Mercenary with Small Laser Last Messages --------------- (-11). Overheating: Energy bleed (-6). Broken Aluminum Leg destroyed. Overheating: Energy bleed (-4). K-01 Serf collects debris. Overheating: Matter decay (-51). Overheating: Beam Cannon damaged (-9). G-34 Mercenary destroyed. K-01 Serf collects debris. Acquired 46 matter. Overheating: Core damaged (-40). Overheating: Core damaged (-27). K-01 Serf collects debris. Beam Cannon destroyed. Dropped Lgt. Assault Rifle. K-01 Serf collects debris. Sml. Laser broken. Overheating: Short circuit. Overheating: System interference. Lgt. Assault Rifle temporarily disabled. Map ----- +----------------------------------------------------+ | ????????????????? ??? ??????????????????????? | | ???????????????? "?" ??????????????????????? | | ????????????????? ? #?????????????????????? | | ????????????????? ? #?????????????????????? | | ???????????????? """ #?????????????????????? | | ???????????????? """ #?????????????????????? | | ?????########### """ #?????????????????????? | | ?????# # #?????????????????????? | | ?????# # #?????????????????????? | | ?????# """ """ # """ #?????????????????????? | | ?????# """ """ # """ ##????????????????????? | | ?????# """ """ # """ T#????????????????????? | | ?????# # #?????????????????????? | | #????# # ########??????????????? | | #????#/ # """ #!! #??????????????? | | ###??####+###### """ #!! #??????????????? | | ##### #### """ # #??????????????? | | + #??????????????? | | T # #??????????????? | | """ # #??????????????? | | ##### #### """ ########??????????????? | | [ ############??# %[ #????????????????????? | | [# #????#^ [kg #????????????????????? | | + """ ?????#^ %= #????????????????????? | | # """ ????## " " ! #????????????????????? | | = #?? """ ????#" """=@ #????????????????????? | | =#???? #???#T """ #????????????????????? | | #??????" #???#" ^ #????????????????????? | | #????????#??### g #????????????????????? | | #???????????#"" """ #????????????????????? | | #???????????#"T """ #????????????????????? | | #???????????#"" """ #????????????????????? | | ##########??### #????????????????????? | | # #????# #????????????????????? | | # """#????# #????????????????????? | | # """#????# !!! #????????????????????? | | # """#????# !!! #????????????????????? | | + #????# !!! ???????????????????? | | # """#????# ??????????????????? | | # """#????# #?????????????????? | | # """#????###+####### < #?????????????????? | | #### #??????? ??????? #?????????????????? | | ???##########??????? ???????####?????????????????? | | ???????????????????? ????????????????????????????? | | ???????????????????? ????????????????????????????? | | ???????????????????? ????????????????????????????? | | ?????????????????????????????????????????????????? | | ?????????????????????????????????????????????????? | | | | | +----------------------------------------------------+ Best States ------------- Heat Dissipation 25 Energy Generation 10 Energy Capacity 125 Matter Stores 300 Matter Capacity 300 Sight Range 18 Terrain Scan Density 10 Evasion (%) 55 Item Schematics ----------------- None Robot Schematics ------------------ None Fabricated ------------ Nothing Alien Tech Used ----------------- None Achievements -------------- Everything Is Under Control Challenges ------------ None Game ------ Seed MomentumCoordinationMallet Manual? 0 Play Time 00:09:02 Cumulative 1.0 hours Start 2024.12.12 @ 01:01:49 End 2024.12.12 @ 01:09:35 Sessions 1 Manual Loads 0 Difficulty Rogue Special Mode None Game No. 3 Rogue 3 Adventurer 0 Explorer 0 Win Type - Total 0 Types 0/0/0/0/0/0/0/0/0 Lore% 0 Gallery% 2 Achievement% 4 Wizard Run 0 Options --------- Layout 1 ASCII 0 Keyboard 0 Movement Arrows Keybinds 0 Fullscreen 1 Font 24/Smallcaps Map View 50x35 Zoom Use 0% Tactical HUD 0 Map Filters NONE Filters NONE Steam 1 RUN: 4aaa0fce-67f6-41ad-9863-f3c794058690